[Event "Live Chess"]
[Site "Chess.com"]
[Date "2023.05.20"]
[Round "-"]
[White "Brooms1989"]
[Black "garyjc"]
[Result "0-1"]
[WhiteElo "1008"]
[BlackElo "1041"]
[TimeControl "300"]
[EndTime "11:05:57 PDT"]
[Termination "garyjc won by checkmate"]

1. e4 {[%clk 0:04:57.2]} 1... c5 {[%clk 0:04:58.9]} 2. Nc3 {[%clk 0:04:55.9]}
2... d6 {[%clk 0:04:57.5]} 3. f4 {[%clk 0:04:53.8]} 3... Nc6 {[%clk 0:04:44]} 4.
Bb5 {[%clk 0:04:46]} 4... a6 {[%clk 0:04:41.3]} 5. Bxc6+ {[%clk 0:04:38.9]} 5...
bxc6 {[%clk 0:04:40.2]} 6. Nf3 {[%clk 0:04:38.4]} 6... Bg4 {[%clk 0:04:33.9]} 7.
O-O {[%clk 0:04:36.9]} 7... d5 {[%clk 0:04:23.1]} 8. exd5 {[%clk 0:04:16.4]}
8... cxd5 {[%clk 0:04:20.5]} 9. h3 {[%clk 0:04:15.9]} 9... Bf5 {[%clk
0:04:13.1]} 10. d3 {[%clk 0:04:14.6]} 10... e6 {[%clk 0:04:07.6]} 11. Qe1 {[%clk
0:04:06.3]} 11... Bd6 {[%clk 0:03:59.3]} 12. Qg3 {[%clk 0:04:02.6]} 12... Nf6
{[%clk 0:03:42.7]} 13. Ne5 {[%clk 0:03:38.2]} 13... Nh5 {[%clk 0:03:29.3]} 14.
Qh4 {[%clk 0:03:19]} 14... Nf6 {[%clk 0:03:08.6]} 15. g4 {[%clk 0:03:12.5]}
15... Nxg4 {[%clk 0:02:45.1]} 16. hxg4 {[%clk 0:03:10.4]} 16... Qxh4 {[%clk
0:02:43.3]} 17. gxf5 {[%clk 0:03:08.7]} 17... Qg3+ {[%clk 0:02:36.2]} 18. Kh1
{[%clk 0:03:06.5]} 18... Bxe5 {[%clk 0:02:31.4]} 19. Rg1 {[%clk 0:02:53.1]}
19... Qh3# {[%clk 0:02:27.9]} 0-1

[Event "Live Chess"]
[Site "Chess.com"]
[Date "2023.05.20"]
[Round "-"]
[White "Ayush_prahlad_Gupta"]
[Black "Kr1xot4_XGOD"]
[Result "0-1"]
[WhiteElo "1820"]
[BlackElo "2217"]
[TimeControl "300"]
[EndTime "11:06:01 PDT"]
[Termination "Kr1xot4_XGOD won by checkmate"]

1. e4 {[%clk 0:04:55.3]} 1... c5 {[%clk 0:04:59.1]} 2. Nc3 {[%clk 0:04:54.4]}
2... e6 {[%clk 0:04:56.7]} 3. Bc4 {[%clk 0:04:53.7]} 3... Nf6 {[%clk 0:04:53.3]}
4. Nf3 {[%clk 0:04:49]} 4... a6 {[%clk 0:04:50.3]} 5. a4 {[%clk 0:04:47.1]} 5...
d5 {[%clk 0:04:47.2]} 6. exd5 {[%clk 0:04:47]} 6... exd5 {[%clk 0:04:42.9]} 7.
Ba2 {[%clk 0:04:46.9]} 7... Be6 {[%clk 0:04:39.6]} 8. h3 {[%clk 0:04:43.9]} 8...
Bd6 {[%clk 0:04:36.4]} 9. Ng5 {[%clk 0:04:42.7]} 9... O-O {[%clk 0:04:32.9]} 10.
O-O {[%clk 0:04:37.8]} 10... Nc6 {[%clk 0:04:29.1]} 11. Ne2 {[%clk 0:04:33.7]}
11... Bd7 {[%clk 0:04:09.8]} 12. Ng3 {[%clk 0:04:27.9]} 12... h6 {[%clk
0:04:04.2]} 13. Nf3 {[%clk 0:04:20.6]} 13... Re8 {[%clk 0:03:59.4]} 14. d3
{[%clk 0:04:19.1]} 14... b5 {[%clk 0:03:51.7]} 15. Bd2 {[%clk 0:04:10.1]} 15...
bxa4 {[%clk 0:03:48.4]} 16. Qc1 {[%clk 0:04:07.8]} 16... c4 {[%clk 0:03:43.8]}
17. Bxh6 {[%clk 0:04:06.7]} 17... gxh6 {[%clk 0:03:37.5]} 18. Qxh6 {[%clk
0:04:06.6]} 18... Ne5 {[%clk 0:03:34.2]} 19. dxc4 {[%clk 0:04:03.5]} 19... Nxf3+
{[%clk 0:03:23.7]} 20. gxf3 {[%clk 0:04:02.7]} 20... Bf8 {[%clk 0:03:21]} 21.
Qg5+ {[%clk 0:04:00.7]} 21... Bg7 {[%clk 0:03:17.9]} 22. cxd5 {[%clk 0:03:55.9]}
22... Nh7 {[%clk 0:03:16.9]} 23. Qh5 {[%clk 0:03:54]} 23... Re5 {[%clk
0:03:13.2]} 24. Qxe5 {[%clk 0:03:27.9]} 24... Bxe5 {[%clk 0:03:10]} 25. Kh2
{[%clk 0:03:25.4]} 25... Ng5 {[%clk 0:03:04.7]} 26. Rae1 {[%clk 0:03:10.4]}
26... Nxf3+ {[%clk 0:02:58]} 27. Kg2 {[%clk 0:03:10.3]} 27... Nxe1+ {[%clk
0:02:55.2]} 28. Rxe1 {[%clk 0:03:09.3]} 28... Bxb2 {[%clk 0:02:51.9]} 29. Kf3
{[%clk 0:02:56.1]} 29... Qf6+ {[%clk 0:02:46.4]} 30. Kg2 {[%clk 0:02:52.8]}
30... Bd4 {[%clk 0:02:42]} 31. Ne4 {[%clk 0:02:48.6]} 31... Qf5 {[%clk
0:02:36.7]} 32. Rg1 {[%clk 0:02:40.8]} 32... Qxh3# {[%clk 0:02:32.8]} 0-1

[Event "Live Chess"]
[Site "Chess.com"]
[Date "2023.05.20"]
[Round "-"]
[White "Reggie016"]
[Black "lucaskk818"]
[Result "0-1"]
[WhiteElo "1072"]
[BlackElo "1885"]
[TimeControl "300"]
[EndTime "11:06:04 PDT"]
[Termination "lucaskk818 won by resignation"]

1. e4 {[%clk 0:04:59.1]} 1... c5 {[%clk 0:04:58.2]} 2. c3 {[%clk 0:04:58.2]}
2... d5 {[%clk 0:04:56.3]} 3. exd5 {[%clk 0:04:56.6]} 3... Qxd5 {[%clk
0:04:56.2]} 4. d4 {[%clk 0:04:55.8]} 4... e6 {[%clk 0:04:53.7]} 5. Nf3 {[%clk
0:04:53.1]} 5... Nf6 {[%clk 0:04:51.6]} 6. c4 {[%clk 0:04:52.4]} 6... Qd8 {[%clk
0:04:47.3]} 7. Nc3 {[%clk 0:04:50]} 7... h6 {[%clk 0:04:41.8]} 8. Be2 {[%clk
0:04:44.7]} 8... Be7 {[%clk 0:04:40.2]} 9. O-O {[%clk 0:04:44.3]} 9... O-O
{[%clk 0:04:37.7]} 10. d5 {[%clk 0:04:41.8]} 10... exd5 {[%clk 0:04:36.2]} 11.
cxd5 {[%clk 0:04:40.9]} 11... Bd6 {[%clk 0:04:33]} 12. Nb5 {[%clk 0:04:35.9]}
12... a6 {[%clk 0:04:28.5]} 13. Nxd6 {[%clk 0:04:34.9]} 13... Qxd6 {[%clk
0:04:28.4]} 14. h3 {[%clk 0:04:27.8]} 14... Qxd5 {[%clk 0:04:23.7]} 15. Qxd5
{[%clk 0:04:26.2]} 15... Nxd5 {[%clk 0:04:23.6]} 16. Bc4 {[%clk 0:04:23.2]}
16... Be6 {[%clk 0:04:17.1]} 17. Ne5 {[%clk 0:04:17.8]} 17... b5 {[%clk
0:04:14.3]} 18. Be2 {[%clk 0:04:08.4]} 18... Rd8 {[%clk 0:04:06.9]} 19. Be3
{[%clk 0:04:06.3]} 19... Nxe3 {[%clk 0:04:03.7]} 20. fxe3 {[%clk 0:04:06]} 20...
c4 {[%clk 0:03:57.8]} 21. Rad1 {[%clk 0:04:04]} 21... Nd7 {[%clk 0:03:40.7]} 22.
Nxd7 {[%clk 0:03:52.1]} 22... Rxd7 {[%clk 0:03:40.6]} 23. Rxd7 {[%clk
0:03:41.9]} 23... Bxd7 {[%clk 0:03:40.5]} 24. Rd1 {[%clk 0:03:41.1]} 24... Be6
{[%clk 0:03:35.4]} 25. Rd6 {[%clk 0:03:33.9]} 25... Kf8 {[%clk 0:03:28.7]} 26.
Bf3 {[%clk 0:03:27.2]} 26... Ra7 {[%clk 0:03:22.9]} 27. Bc6 {[%clk 0:03:17.1]}
27... Ke7 {[%clk 0:03:18.5]} 28. Rd1 {[%clk 0:03:11.3]} 28... Rc7 {[%clk
0:03:14.2]} 29. Ba8 {[%clk 0:03:05.8]} 29... c3 {[%clk 0:02:57.7]} 30. bxc3
{[%clk 0:03:02.3]} 30... Rxc3 {[%clk 0:02:57.6]} 31. Bb7 {[%clk 0:02:58.8]}
31... Rc2 {[%clk 0:02:53.7]} 32. Bxa6 {[%clk 0:02:55.1]} 32... Bc4 {[%clk
0:02:48.8]} 33. Bc8 {[%clk 0:02:50]} 33... Rxa2 {[%clk 0:02:44]} 34. Rd7+ {[%clk
0:02:48.6]} 34... Kf6 {[%clk 0:02:43.6]} 35. Rd6+ {[%clk 0:02:46.9]} 35... Be6
{[%clk 0:02:37.4]} 36. Kf1 {[%clk 0:02:40.2]} 36... Ke7 {[%clk 0:02:31.6]} 37.
Rc6 {[%clk 0:02:33.3]} 37... Bxc8 {[%clk 0:02:26.4]} 38. Rxc8 {[%clk 0:02:32.7]}
38... b4 {[%clk 0:02:24.7]} 39. Rb8 {[%clk 0:02:31.9]} 39... Rb2 {[%clk
0:02:20.9]} 40. g4 {[%clk 0:02:26.1]} 40... b3 {[%clk 0:02:19.7]} 41. e4 {[%clk
0:02:25.1]} 41... Rb1+ {[%clk 0:02:16.8]} 42. Ke2 {[%clk 0:02:24.1]} 42... b2
{[%clk 0:02:16.3]} 43. Rb7+ {[%clk 0:02:22.3]} 43... Kf6 {[%clk 0:02:14.4]} 44.
Rb6+ {[%clk 0:02:19.8]} 44... Kg5 {[%clk 0:02:09.3]} 45. Rb5+ {[%clk 0:02:14.7]}
45... Kg6 {[%clk 0:02:07.4]} 46. Rb6+ {[%clk 0:02:12.7]} 46... f6 {[%clk
0:02:06.9]} 47. h4 {[%clk 0:02:09]} 47... Rg1 {[%clk 0:02:03.8]} 48. h5+ {[%clk
0:02:07.8]} 48... Kh7 {[%clk 0:01:55.6]} 49. Rxb2 {[%clk 0:02:06.7]} 49... Rg2+
{[%clk 0:01:53.7]} 0-1

[Event "Live Chess"]
[Site "Chess.com"]
[Date "2023.05.20"]
[Round "-"]
[White "Conradical12"]
[Black "Albul"]
[Result "1/2-1/2"]
[WhiteElo "1547"]
[BlackElo "2164"]
[TimeControl "300"]
[EndTime "11:06:05 PDT"]
[Termination "Game drawn - insufficient material"]

1. e4 {[%clk 0:04:58.1]} 1... d5 {[%clk 0:04:58.9]} 2. exd5 {[%clk 0:04:56.6]}
2... Nf6 {[%clk 0:04:58.5]} 3. Nf3 {[%clk 0:04:55.4]} 3... Nxd5 {[%clk
0:04:57.6]} 4. Bc4 {[%clk 0:04:51.5]} 4... Bg4 {[%clk 0:04:55.8]} 5. O-O {[%clk
0:04:48.5]} 5... e6 {[%clk 0:04:54.5]} 6. Nc3 {[%clk 0:04:47]} 6... Nb6 {[%clk
0:04:44.6]} 7. Bb3 {[%clk 0:04:44.9]} 7... c5 {[%clk 0:04:42.1]} 8. d3 {[%clk
0:04:42.4]} 8... Nc6 {[%clk 0:04:39.9]} 9. Bf4 {[%clk 0:04:39.6]} 9... Nd4
{[%clk 0:04:36.4]} 10. h3 {[%clk 0:04:36.5]} 10... Nxf3+ {[%clk 0:04:35.1]} 11.
gxf3 {[%clk 0:04:33.5]} 11... Bxh3 {[%clk 0:04:34.7]} 12. Re1 {[%clk 0:04:32.3]}
12... Bd6 {[%clk 0:04:14.6]} 13. Qd2 {[%clk 0:04:26.9]} 13... O-O {[%clk
0:04:07.7]} 14. Ne4 {[%clk 0:04:24]} 14... Be7 {[%clk 0:04:01.6]} 15. Qe3 {[%clk
0:04:05.5]} 15... Rc8 {[%clk 0:03:55.6]} 16. Ng5 {[%clk 0:04:01.5]} 16... Bxg5
{[%clk 0:03:37.2]} 17. Bxg5 {[%clk 0:03:59.9]} 17... Nd5 {[%clk 0:03:16.2]} 18.
Qe5 {[%clk 0:03:17.1]} 18... Qc7 {[%clk 0:03:11.1]} 19. Bxd5 {[%clk 0:03:09.1]}
19... Qxe5 {[%clk 0:03:06.4]} 20. Rxe5 {[%clk 0:03:06.6]} 20... f6 {[%clk
0:03:02.9]} 21. Bxe6+ {[%clk 0:02:47.6]} 21... Bxe6 {[%clk 0:02:58.8]} 22. Rxe6
{[%clk 0:02:45.5]} 22... fxg5 {[%clk 0:02:58.3]} 23. Re7 {[%clk 0:02:44.8]}
23... Rf7 {[%clk 0:02:55.7]} 24. Rae1 {[%clk 0:02:41.9]} 24... Kf8 {[%clk
0:02:51]} 25. Rxf7+ {[%clk 0:02:34.1]} 25... Kxf7 {[%clk 0:02:49.7]} 26. Re5
{[%clk 0:02:33.7]} 26... Kf6 {[%clk 0:02:47.4]} 27. Rd5 {[%clk 0:02:32.7]} 27...
Rc7 {[%clk 0:02:45.2]} 28. Kg2 {[%clk 0:02:30.7]} 28... h5 {[%clk 0:02:41.7]}
29. Kg3 {[%clk 0:02:29.1]} 29... b6 {[%clk 0:02:39.4]} 30. f4 {[%clk 0:02:27.7]}
30... gxf4+ {[%clk 0:02:35.7]} 31. Kxf4 {[%clk 0:02:26.8]} 31... Rf7 {[%clk
0:02:01.4]} 32. Rf5+ {[%clk 0:02:23.2]} 32... Kg6 {[%clk 0:01:59.8]} 33. Rxf7
{[%clk 0:02:21.2]} 33... Kxf7 {[%clk 0:01:59.3]} 34. Kg5 {[%clk 0:02:20.1]}
34... g6 {[%clk 0:01:58.4]} 35. f4 {[%clk 0:02:19]} 35... Ke6 {[%clk 0:01:57.3]}
36. c3 {[%clk 0:02:08.2]} 36... Kd5 {[%clk 0:01:52.7]} 37. f5 {[%clk 0:01:58.5]}
37... gxf5 {[%clk 0:01:49.7]} 38. Kxf5 {[%clk 0:01:57.5]} 38... c4 {[%clk
0:01:45.1]} 39. d4 {[%clk 0:01:56.3]} 39... b5 {[%clk 0:01:43.5]} 40. a3 {[%clk
0:01:51.7]} 40... a5 {[%clk 0:01:41.6]} 41. Kg5 {[%clk 0:01:50.9]} 41... b4
{[%clk 0:01:40.9]} 42. axb4 {[%clk 0:01:48.8]} 42... axb4 {[%clk 0:01:39.1]} 43.
cxb4 {[%clk 0:01:47.9]} 43... Kxd4 {[%clk 0:01:37.7]} 44. Kxh5 {[%clk
0:01:45.6]} 44... Kd5 {[%clk 0:01:36]} 45. Kg4 {[%clk 0:01:43.7]} 45... Kc6
{[%clk 0:01:35.6]} 46. Kf4 {[%clk 0:01:39.8]} 46... Kb5 {[%clk 0:01:35.2]} 47.
Ke3 {[%clk 0:01:38.4]} 47... Kxb4 {[%clk 0:01:34.8]} 48. Kd2 {[%clk 0:01:38.1]}
48... Kb3 {[%clk 0:01:34.4]} 49. Kc1 {[%clk 0:01:36.9]} 49... Ka4 {[%clk
0:01:23.4]} 50. Kc2 {[%clk 0:01:34.8]} 50... Kb4 {[%clk 0:01:23]} 51. Kc1 {[%clk
0:01:34]} 51... Kb3 {[%clk 0:01:21.2]} 52. Kb1 {[%clk 0:01:33.1]} 52... c3
{[%clk 0:01:18.8]} 53. bxc3 {[%clk 0:01:31.8]} 53... Kxc3 {[%clk 0:01:18.4]}
1/2-1/2

[Event "Live Chess"]
[Site "Chess.com"]
[Date "2023.05.20"]
[Round "-"]
[White "Salpingidis"]
[Black "mattihelenius2"]
[Result "1-0"]
[WhiteElo "2308"]
[BlackElo "450"]
[TimeControl "300"]
[EndTime "11:06:05 PDT"]
[Termination "Salpingidis won by resignation"]

1. d4 {[%clk 0:04:57.9]} 1... d5 {[%clk 0:04:56.6]} 2. c4 {[%clk 0:04:57]} 2...
c6 {[%clk 0:04:54.2]} 3. Nc3 {[%clk 0:04:56.3]} 3... Nf6 {[%clk 0:04:52.2]} 4.
Nf3 {[%clk 0:04:55.8]} 4... Bg4 {[%clk 0:04:50.4]} 5. e3 {[%clk 0:04:54.2]} 5...
Bxf3 {[%clk 0:04:49]} 6. Qxf3 {[%clk 0:04:52.4]} 6... Nbd7 {[%clk 0:04:44.1]} 7.
cxd5 {[%clk 0:04:50.6]} 7... cxd5 {[%clk 0:04:42.8]} 8. Nxd5 {[%clk 0:04:49.9]}
8... Nxd5 {[%clk 0:04:41.5]} 9. Qxd5 {[%clk 0:04:49.8]} 9... Nb6 {[%clk
0:04:39.4]} 10. Bb5+ {[%clk 0:04:47.2]} 10... Qd7 {[%clk 0:04:33.1]} 11. Bxd7+
{[%clk 0:04:45.2]} 11... Nxd7 {[%clk 0:04:32.3]} 12. Qxb7 {[%clk 0:04:43.8]}
12... Rd8 {[%clk 0:04:29.2]} 13. Bd2 {[%clk 0:04:42]} 13... g6 {[%clk
0:04:28.5]} 14. Rc1 {[%clk 0:04:38.9]} 14... Bg7 {[%clk 0:04:27.7]} 15. Rc8
{[%clk 0:04:36.3]} 15... f6 {[%clk 0:04:24.1]} 16. Rxd8+ {[%clk 0:04:34]} 16...
Kxd8 {[%clk 0:04:22.8]} 17. Qa8+ {[%clk 0:04:33.5]} 17... Kc7 {[%clk 0:04:21.5]}
18. Qxa7+ {[%clk 0:04:33]} 18... Kd6 {[%clk 0:04:20.2]} 19. Ke2 {[%clk
0:04:31.4]} 19... Ke6 {[%clk 0:04:18.6]} 20. d5+ {[%clk 0:04:28.3]} 20... Kf7
{[%clk 0:04:12.7]} 21. Qxd7 {[%clk 0:04:27.2]} 21... Rf8 {[%clk 0:04:09.5]} 22.
Bb4 {[%clk 0:04:25.5]} 22... Re8 {[%clk 0:04:05.7]} 23. Rc1 {[%clk 0:04:20.8]}
23... Bf8 {[%clk 0:04:04.3]} 24. Rc8 {[%clk 0:04:18.4]} 24... Rxc8 {[%clk
0:03:59.6]} 25. Qxc8 {[%clk 0:04:18.3]} 25... Kg7 {[%clk 0:03:56.7]} 26. Qe6
{[%clk 0:04:17.4]} 26... Kh6 {[%clk 0:03:53.3]} 27. Bxe7 {[%clk 0:04:16]} 27...
Bxe7 {[%clk 0:03:51.9]} 28. Qxe7 {[%clk 0:04:15.9]} 28... f5 {[%clk 0:03:50.5]}
29. d6 {[%clk 0:04:15.8]} 29... Kh5 {[%clk 0:03:48.8]} 30. d7 {[%clk 0:04:14.7]}
30... Kg4 {[%clk 0:03:47.9]} 31. h3+ {[%clk 0:04:11.6]} 31... Kh5 {[%clk
0:03:46]} 32. d8=Q {[%clk 0:04:06.8]} 1-0

[Event "Live Chess"]
[Site "Chess.com"]
[Date "2023.05.20"]
[Round "-"]
[White "matt1979"]
[Black "f4nomore"]
[Result "1-0"]
[WhiteElo "1437"]
[BlackElo "1361"]
[TimeControl "300"]
[EndTime "11:06:12 PDT"]
[Termination "matt1979 won by resignation"]

1. f4 {[%clk 0:04:57.8]} 1... g6 {[%clk 0:04:59.5]} 2. Nf3 {[%clk 0:04:55.9]}
2... Bg7 {[%clk 0:04:59.4]} 3. e3 {[%clk 0:04:53.7]} 3... d6 {[%clk 0:04:58.5]}
4. d3 {[%clk 0:04:42.7]} 4... Nf6 {[%clk 0:04:56.8]} 5. Be2 {[%clk 0:04:40.3]}
5... O-O {[%clk 0:04:53.7]} 6. e4 {[%clk 0:04:37.1]} 6... Nbd7 {[%clk
0:04:52.3]} 7. O-O {[%clk 0:04:35.3]} 7... a6 {[%clk 0:04:51.2]} 8. f5 {[%clk
0:04:30.6]} 8... c5 {[%clk 0:04:48.7]} 9. Qe1 {[%clk 0:04:26.1]} 9... Ng4 {[%clk
0:04:46.3]} 10. h3 {[%clk 0:04:23.7]} 10... Nge5 {[%clk 0:04:44.7]} 11. Qh4
{[%clk 0:04:13.7]} 11... Nxf3+ {[%clk 0:04:41.5]} 12. Bxf3 {[%clk 0:04:07.5]}
12... e5 {[%clk 0:04:40.2]} 13. Qg3 {[%clk 0:03:57]} 13... b5 {[%clk 0:04:35.3]}
14. h4 {[%clk 0:03:41.9]} 14... Nf6 {[%clk 0:04:27.2]} 15. h5 {[%clk 0:03:32.3]}
15... Nxh5 {[%clk 0:04:22.8]} 16. Bxh5 {[%clk 0:03:31.1]} 16... gxh5 {[%clk
0:04:20.3]} 17. Bh6 {[%clk 0:03:28.9]} 17... Qf6 {[%clk 0:04:12.9]} 18. Bxg7
{[%clk 0:03:26.1]} 18... Qxg7 {[%clk 0:04:11.4]} 19. Qh4 {[%clk 0:03:10.2]}
19... Qh6 {[%clk 0:04:08.6]} 20. Rf3 {[%clk 0:03:05]} 20... Kh8 {[%clk
0:04:07.2]} 21. Nc3 {[%clk 0:02:54.5]} 21... Bd7 {[%clk 0:04:02.7]} 22. Nd5
{[%clk 0:02:51.7]} 22... Rg8 {[%clk 0:03:55.9]} 23. Nf6 {[%clk 0:02:48.1]} 23...
Rg4 {[%clk 0:03:34.5]} 24. Nxg4 {[%clk 0:02:43.8]} 24... Rg8 {[%clk 0:03:28.2]}
25. Nxh6 {[%clk 0:02:41.3]} 1-0

[Event "Live Chess"]
[Site "Chess.com"]
[Date "2023.05.20"]
[Round "-"]
[White "McSlash1"]
[Black "Fazer180"]
[Result "1-0"]
[WhiteElo "2063"]
[BlackElo "1726"]
[TimeControl "300"]
[EndTime "11:06:13 PDT"]
[Termination "McSlash1 won by resignation"]

1. e4 {[%clk 0:04:59.1]} 1... e6 {[%clk 0:04:59.2]} 2. d4 {[%clk 0:04:58.2]}
2... d5 {[%clk 0:04:59]} 3. Nd2 {[%clk 0:04:57.8]} 3... c5 {[%clk 0:04:56.4]} 4.
dxc5 {[%clk 0:04:57]} 4... Bxc5 {[%clk 0:04:54.6]} 5. Bd3 {[%clk 0:04:56.7]}
5... Nc6 {[%clk 0:04:52.6]} 6. c3 {[%clk 0:04:54.1]} 6... Nf6 {[%clk 0:04:50.5]}
7. Qe2 {[%clk 0:04:52.8]} 7... Qb6 {[%clk 0:04:44.3]} 8. Ngf3 {[%clk 0:04:48.5]}
8... O-O {[%clk 0:04:40.5]} 9. O-O {[%clk 0:04:46.8]} 9... dxe4 {[%clk
0:04:35.1]} 10. Nxe4 {[%clk 0:04:46.7]} 10... Nxe4 {[%clk 0:04:34.3]} 11. Qxe4
{[%clk 0:04:46.6]} 11... f5 {[%clk 0:04:28.9]} 12. Qh4 {[%clk 0:04:42.6]} 12...
Be7 {[%clk 0:04:19]} 13. Bg5 {[%clk 0:04:41.6]} 13... Qd8 {[%clk 0:04:10.6]} 14.
Rad1 {[%clk 0:04:37]} 14... Qc7 {[%clk 0:04:04.5]} 15. Rfe1 {[%clk 0:04:25.2]}
15... Bxg5 {[%clk 0:03:59.6]} 16. Nxg5 {[%clk 0:04:21.7]} 16... g6 {[%clk
0:03:58.5]} 17. Bc4 {[%clk 0:04:16.9]} 17... Nd8 {[%clk 0:03:49.2]} 18. Rxd8
{[%clk 0:04:00.1]} 18... Rxd8 {[%clk 0:03:44.8]} 19. Bxe6+ {[%clk 0:03:55.3]}
19... Bxe6 {[%clk 0:03:21.2]} 20. Nxe6 {[%clk 0:03:55.2]} 20... Qd6 {[%clk
0:03:11.9]} 21. Nxd8 {[%clk 0:03:27.8]} 21... Rxd8 {[%clk 0:03:06.2]} 22. h3
{[%clk 0:03:17]} 22... Qd2 {[%clk 0:02:59.7]} 23. Qe7 {[%clk 0:03:13.3]} 23...
Rd7 {[%clk 0:02:49.4]} 24. Qe8+ {[%clk 0:03:11.5]} 24... Kg7 {[%clk 0:02:48.9]}
25. Re2 {[%clk 0:03:04.5]} 25... Qd1+ {[%clk 0:02:44.2]} 26. Kh2 {[%clk
0:03:03.6]} 26... Qd6+ {[%clk 0:02:41.2]} 27. g3 {[%clk 0:03:02.1]} 27... f4
{[%clk 0:02:37.9]} 28. Kg2 {[%clk 0:02:57.9]} 28... Qc6+ {[%clk 0:02:25.2]} 29.
Kh2 {[%clk 0:02:54]} 29... fxg3+ {[%clk 0:02:19]} 30. fxg3 {[%clk 0:02:53.9]}
30... Qd6 {[%clk 0:02:11.3]} 31. Qe3 {[%clk 0:02:45.8]} 31... b6 {[%clk
0:02:06.8]} 32. Rf2 {[%clk 0:02:41.2]} 32... Rf7 {[%clk 0:01:56.5]} 33. Re2
{[%clk 0:02:37.5]} 33... Qf6 {[%clk 0:01:51.1]} 34. Kg2 {[%clk 0:02:30.8]} 34...
Qc6+ {[%clk 0:01:48.8]} 35. Qe4 {[%clk 0:02:28.2]} 35... Qf6 {[%clk 0:01:46.8]}
36. Qe5 {[%clk 0:02:23.9]} 36... Kf8 {[%clk 0:01:38.5]} 37. Qxf6 {[%clk
0:02:19.4]} 37... Rxf6 {[%clk 0:01:38.4]} 38. Rf2 {[%clk 0:02:18.9]} 38... Kf7
{[%clk 0:01:36.8]} 39. Rxf6+ {[%clk 0:02:17.8]} 39... Kxf6 {[%clk 0:01:36.7]}
40. Kf3 {[%clk 0:02:17]} 40... Ke5 {[%clk 0:01:36.2]} 41. Ke3 {[%clk 0:02:16.3]}
41... g5 {[%clk 0:01:32.7]} 42. b4 {[%clk 0:02:14.1]} 42... h5 {[%clk
0:01:30.3]} 43. c4 {[%clk 0:02:12.4]} 43... a6 {[%clk 0:01:22.7]} 44. a4 {[%clk
0:02:10.9]} 44... Kf5 {[%clk 0:01:17.6]} 45. Kf3 {[%clk 0:02:07.5]} 45... h4
{[%clk 0:01:14.4]} 46. g4+ {[%clk 0:02:06.3]} 46... Ke5 {[%clk 0:01:13.2]} 47.
Ke3 {[%clk 0:02:05.9]} 47... a5 {[%clk 0:01:09.5]} 48. b5 {[%clk 0:01:59.8]}
48... Ke6 {[%clk 0:01:05.8]} 49. Ke4 {[%clk 0:01:58.8]} 49... Kd6 {[%clk
0:01:05.2]} 50. Kd4 {[%clk 0:01:57.6]} 50... Ke6 {[%clk 0:01:03.1]} 51. c5
{[%clk 0:01:57.2]} 51... bxc5+ {[%clk 0:01:02.5]} 52. Kxc5 {[%clk 0:01:57.1]}
52... Ke5 {[%clk 0:01:01.4]} 53. b6 {[%clk 0:01:56.5]} 53... Kf4 {[%clk
0:01:01.3]} 54. b7 {[%clk 0:01:55.4]} 54... Kg3 {[%clk 0:01:01.2]} 55. b8=Q+
{[%clk 0:01:53]} 55... Kxh3 {[%clk 0:01:01.1]} 56. Kd4 {[%clk 0:01:44.9]} 56...
Kxg4 {[%clk 0:01:01]} 57. Ke3 {[%clk 0:01:43.7]} 57... Kh3 {[%clk 0:00:59.5]}
58. Kf2 {[%clk 0:01:38.2]} 58... g4 {[%clk 0:00:59.4]} 59. Qa8 {[%clk
0:01:32.3]} 59... g3+ {[%clk 0:00:59.3]} 60. Kf1 {[%clk 0:01:29.2]} 60... Kg4
{[%clk 0:00:56.6]} 61. Qc8+ {[%clk 0:01:27.6]} 61... Kf3 {[%clk 0:00:54.4]} 62.
Qf5+ {[%clk 0:01:25.5]} 62... Ke3 {[%clk 0:00:52.8]} 63. Kg2 {[%clk 0:01:25.1]}
1-0

[Event "Live Chess"]
[Site "Chess.com"]
[Date "2023.05.20"]
[Round "-"]
[White "18Ziyad"]
[Black "diana21strabt"]
[Result "0-1"]
[WhiteElo "953"]
[BlackElo "1709"]
[TimeControl "300"]
[EndTime "11:06:30 PDT"]
[Termination "diana21strabt won by resignation"]

1. e4 {[%clk 0:04:58.6]} 1... d5 {[%clk 0:04:58.7]} 2. exd5 {[%clk 0:04:57.4]}
2... Qxd5 {[%clk 0:04:58]} 3. Nc3 {[%clk 0:04:57.1]} 3... Qa5 {[%clk 0:04:57]}
4. Nf3 {[%clk 0:04:57]} 4... Nf6 {[%clk 0:04:56.1]} 5. d4 {[%clk 0:04:55.4]}
5... Bg4 {[%clk 0:04:54.9]} 6. Bd2 {[%clk 0:04:53.8]} 6... Nc6 {[%clk
0:04:53.8]} 7. Ne4 {[%clk 0:04:52.6]} 7... Qf5 {[%clk 0:04:52.6]} 8. Nxf6+
{[%clk 0:04:51.3]} 8... Qxf6 {[%clk 0:04:52.1]} 9. Be2 {[%clk 0:04:49.6]} 9...
O-O-O {[%clk 0:04:51]} 10. c3 {[%clk 0:04:48.4]} 10... e5 {[%clk 0:04:48.7]} 11.
Be3 {[%clk 0:04:43.7]} 11... exd4 {[%clk 0:04:47.3]} 12. cxd4 {[%clk 0:04:42.6]}
12... Bb4+ {[%clk 0:04:46.2]} 13. Nd2 {[%clk 0:04:37.7]} 13... Bxe2 {[%clk
0:04:44]} 14. Kxe2 {[%clk 0:04:37.6]} 14... Rhe8 {[%clk 0:04:42.4]} 15. Re1
{[%clk 0:04:35.5]} 15... Nxd4+ {[%clk 0:04:39.9]} 16. Kf1 {[%clk 0:04:31]} 16...
Bxd2 {[%clk 0:04:29.3]} 17. Qxd2 {[%clk 0:04:26.9]} 17... Nb3 {[%clk 0:04:24.5]}
18. Qc2 {[%clk 0:04:11.5]} 18... Nxa1 {[%clk 0:04:16.3]} 19. Rxa1 {[%clk
0:04:10.6]} 19... h6 {[%clk 0:04:04.5]} 20. Rc1 {[%clk 0:04:06]} 20... Rd7
{[%clk 0:03:57.1]} 21. g3 {[%clk 0:03:55.9]} 21... Qa6+ {[%clk 0:03:51.8]} 22.
Kg1 {[%clk 0:03:52.6]} 22... Qxa2 {[%clk 0:03:49.5]} 23. Bf4 {[%clk 0:03:52.1]}
23... c6 {[%clk 0:03:44.9]} 24. Be3 {[%clk 0:03:49.7]} 24... Qd5 {[%clk
0:03:41.6]} 25. Bxa7 {[%clk 0:03:45.1]} 25... Qa5 {[%clk 0:03:33.8]} 26. Be3
{[%clk 0:03:39]} 26... f5 {[%clk 0:03:29.4]} 27. Qxf5 {[%clk 0:03:27.6]} 27...
Qxf5 {[%clk 0:03:26.8]} 0-1